Cogmind - Beta 11.1 @@@ ROGUE MODE // 2022.12.01 @ 23:13:09 Player: arcadio Result: Destroyed by Y-72 Warden with Railgun Performance ------------- Evolutions (7) 3500 Regions Visited (24) 4800 Robots Destroyed (197) 985 Value Destroyed (7134) 7134 Prototype IDs (37) 740 Alien Tech Used (0) 0 Bonus (2562) 2562 TOTAL SCORE: 19721 Bonus ------- Follower Combat Kills 892 Aligned with FarCom 300 Met Data Miner 300 Met Warlord at Base 500 MAIN.C Attacked Warlord 500 Scanned by Researcher 500 Friendly Fire -430 Cogmind --------- Core Integrity 0/1300 Matter 14/300 Energy 99/100 System Corruption 3% Temperature Cool (9) Movement Core (50) Location -3/Testing Parts ------- > --- POWER (2) -------- (None) > --- PROPULSION (5) --- (None) > --- UTILITY (10) ----- Machine Analyzer Terrain Scan Processor Advanced Launcher Guidance Computer > --- WEAPON (4) ------- (None) > --- INVENTORY (5) ---- Light Antimatter Reactor Light Antimatter Reactor Gyrokinetic Inverter Advanced System Restoration Module Fusion Bomb Launcher Peak State ------------ > --- POWER ------------ Vortex Chain Reactor > --- PROPULSION ------- Medium Treads Experimental Myomer Leg Cooled Antigrav System Cooled Antigrav System > --- UTILITY ---------- Medium Storage Unit Armor Integrity Analyzer Experimental Phase Shifter Makeshift Ablative Armor Graphene Brace Advanced Remote Shield Improved Hacking Suite System Mapper Drone Bay > --- WEAPON ----------- Quantum Rifle Quantum Rifle Hardcell Cannon > --- INVENTORY -------- Light Angular Momentum Engine Makeshift Transmission Jammer Vortex Rail Thermoblaster Signal Generator [Rating: 133] Favorites ----------- Power Nuclear Core Engine Heavy Ion Engine Power Core Nuclear Core Reactor Vortex Chain Reactor Propulsion Aluminum Leg Treads Advanced Treads Leg Aluminum Leg Wheel Compact Wheel Hover Unit Cooled Antigrav System Utility Medium Storage Unit Device Improved Heat Sink Storage Medium Storage Unit Processor Signal Interpreter Hackware Improved Hacking Suite Protection Hardened Medium Armor Plating Weapon Particle Gun Energy Gun Particle Gun Energy Cannon Ion Cannon Ballistic Gun KE Penetrator Ballistic Cannon Hardcell Cannon Launcher Missile Launcher Special Melee Weapon Datajack Build | -11 -10 -10 -9 -9 -9 -8 -8 -8 -8 -6 -6 -6 -6 -5 -5 -5 -5 -4 -4 -4 -4 -3 -3 -3 ------- Run | Scr Mat Min Mat Min Exi Min Mat Sto Rec Fac Low Low Dat Pro Fac Upp Upp Fac Upp Upp War Pro Res Tes Slots Evolved 14 | . . . 2 . . . 2 . . 4 . . . . 2 . . 2 . . . . 2 . Power 1 | . . . . . . . . . . 1 . . . . . . . . . . . . . . Propulsion 3 | . . . 2 . . . . . . . . . . . 1 . . . . . . . . . Utility 8 | . . . . . . . 2 . . 2 . . . . 1 . . 2 . . . . 1 . Weapon 2 | . . . . . . . . . . 1 . . . . . . . . . . . . 1 . Parts Attached 312 | 6 24 2 24 4 . 1 32 14 10 3 7 15 . 24 58 13 5 8 2 6 9 20 25 . Power 43 | 1 3 . 3 . . . 3 1 . . . 4 . 5 9 4 . 2 . . 1 2 5 . Engine 16 | 1 3 . 1 . . . 2 . . . . . . 4 2 1 . 1 . . . 1 . . Core 19 | . . . 2 . . . 1 1 . . . 4 . . 7 3 . 1 . . . . . . Reactor 8 | . . . . . . . . . . . . . . 1 . . . . . . 1 1 5 . Propulsion 90 | 2 9 1 10 . . 1 7 8 7 . 1 4 . 6 17 . 4 . . 2 2 5 4 . Treads 18 | . 2 . . . . 1 5 4 . . . . . . . . . . . . . 3 3 . Leg 54 | 2 7 1 10 . . . 2 4 7 . 1 4 . 6 2 . 4 . . 2 2 . . . Wheel 10 | . . . . . . . . . . . . . . . 10 . . . . . . . . . Hover 8 | . . . . . . . . . . . . . . . 5 . . . . . . 2 1 . Flight . | . . . . . . . . . . . . . . . . . . . . . . . . . Utility 96 | 1 5 . 2 2 . . 13 3 3 2 3 4 . 7 17 6 . 6 2 2 5 5 8 . Device 51 | . 3 . 1 . . . 6 1 1 2 1 3 . 3 9 3 . 6 1 1 4 3 3 . Storage 11 | 1 2 . 1 1 . . 2 . 1 . . . . . 1 . . . . . . . 2 . Processor 11 | . . . . 1 . . 1 . . . 1 . . . 3 . . . 1 . . 1 3 . Hackware 6 | . . . . . . . 1 . . . . . . 1 1 2 . . . . 1 . . . Protection 17 | . . . . . . . 3 2 1 . 1 1 . 3 3 1 . . . 1 . 1 . . Artifact . | . . . . . . . . . . . . . . . . . . . . . . . . . Weapon 83 | 2 7 1 9 2 . . 9 2 . 1 3 3 . 6 15 3 1 . . 2 1 8 8 . Energy Gun 38 | . 5 . 5 . . . 5 . . 1 2 . . 2 9 2 . . . 1 . 3 3 . Energy Cannon 6 | . . . 1 . . . . 1 . . . 1 . . 3 . . . . . . . . . Ballistic Gun 18 | 2 2 1 1 1 . . 3 1 . . . 1 . 1 1 1 . . . 1 . 1 1 . Ballistic Cannon 11 | . . . 1 1 . . . . . . . . . 2 2 . 1 . . . 1 2 1 . Launcher 8 | . . . . . . . . . . . 1 1 . 1 . . . . . . . 2 3 . Special Weapon . | . . . . . . . . . . . . . . . . . . . . . . . . . Impact Weapon . | . . . . . . . . . . . . . . . . . . . . . . . . . Slashing Weapon . | . . . . . . . . . . . . . . . . . . . . . . . . . Piercing Weapon . | . . . . . . . . . . . . . . . . . . . . . . . . . Special Melee Weapon 2 | . . . 1 . . . 1 . . . . . . . . . . . . . . . . . Unidentified Prototypes 12 | . . . . . . . 1 . . . . . . 2 . . 1 . . . 5 2 1 . Parts Lost 141 | . . 1 5 . 1 . 6 7 . . 1 8 . 23 34 2 5 1 . 3 1 23 20 . Power 20 | . . . . . . . 1 1 . . . 1 . 4 4 2 . . . . . 3 4 . Propulsion 47 | . . . 3 . 1 . 2 4 . . . 3 . 7 11 . 3 . . . 1 9 3 . Utility 40 | . . . . . . . 2 1 . . 1 3 . 3 11 . 1 1 . 1 . 8 8 . Weapon 34 | . . 1 2 . . . 1 1 . . . 1 . 9 8 . 1 . . 2 . 3 5 . Highest Loss Streak 16 | . . 1 2 . 1 . 3 3 . . 1 8 . 7 10 1 5 1 . 3 1 7 16 . To Critical Strikes 2 | . . . . . 1 . . . . . . 1 . . . . . . . . . . . . Average Slot Usage (%) 89 | . 97 100 97 100 99 100 98 97 96 92 91 83 80 78 70 83 74 98 99 88 96 79 54 14 Engine 3 | . 13 14 . 11 11 11 5 . . . . . . 2 1 2 5 5 5 5 2 . . . Core 4 | . . . 10 . . . 3 8 9 6 6 8 6 . 5 7 5 5 5 5 2 . . . Treads 5 | . . . . . . 11 25 25 5 . . . . . . . . . . . . 4 5 . Leg 20 | . 27 28 41 44 43 33 9 9 30 26 26 25 26 23 4 . 7 21 21 22 25 2 . . Wheel 1 | . . . . . . . . . . . . . . . 12 5 . . . . . . . . Hover 1 | . . . . . . . . . . . . . . . 1 17 7 5 5 3 . 8 . . Device 13 | . 12 14 11 2 . . 14 9 15 25 11 13 13 9 13 8 . 19 15 15 20 21 10 . Storage 7 | . 14 14 11 11 11 11 9 9 9 6 6 6 6 6 4 5 5 5 5 5 5 4 3 . Processor 4 | . . . . 8 11 11 10 8 . . 5 6 6 5 5 . . . 4 5 5 2 12 14 Hackware 3 | . . . . . . . . . . . . . . 4 2 16 17 15 15 10 10 10 4 . Protection 3 | . . . . . . . 1 8 9 6 12 3 . 5 2 2 5 5 5 5 4 3 . . Energy Gun 10 | . 22 21 15 4 . . 12 10 9 12 12 7 6 4 6 6 5 5 5 1 5 8 6 . Energy Cannon 1 | . . . 3 . . . . 4 9 6 6 6 6 . 2 . . . . . . . . . Ballistic Gun 3 | . 4 6 2 8 11 11 2 3 . . . 1 6 7 . 4 5 5 5 1 5 1 . . Ballistic Cannon 2 | . . . . 8 11 11 2 . . . . . . 2 1 . 3 5 5 5 5 4 2 . Naked Turns . | . . . . . . . . . . . . . . . . . . . . . . . . . Heaviest Build 150 | 14 22 20 25 30 30 30 68 69 65 50 49 54 30 53 58 43 46 65 60 61 87 103 150 . Greatest Support 152 | 20 40 20 43 43 43 33 88 88 50 50 50 50 40 76 80 42 70 70 70 90 90 70 152 3 Greatest Overweight (x) 16 | . 3 . 2 . . . 1 1 1 . . 1 . 1 16 1 4 . . . 1 3 7 . Average Overweight (x) . | . . . . . . . . . . . . . . . . . 1 . . . . 1 . . Largest Inventory Capacity 25 | 8 10 10 10 10 10 10 20 20 20 10 10 10 10 10 10 10 10 10 10 10 10 10 25 5 Average Capacity 10 | 7 9 10 10 10 10 10 12 20 12 10 10 10 10 10 9 10 10 10 10 10 10 9 10 5 Most Carried 20 | 6 10 10 10 10 10 9 15 17 20 9 10 10 10 10 10 10 9 10 10 10 10 10 10 5 Average Carried 9 | 3 9 9 9 9 9 9 10 16 12 7 8 9 10 8 8 8 7 8 9 9 9 6 6 4 Final Capacity 20 | 8 10 10 10 10 10 10 20 20 10 10 10 10 10 10 10 10 10 10 10 10 10 5 5 5 Final Carried 17 | 6 10 10 9 10 10 9 15 17 10 9 10 10 10 8 10 9 6 10 9 10 10 5 5 5 Class Distribution -------------------- 34% | Scavenger-Mutant 20% | Mutant 10% | Scavenger-Tank 9% | Hacker-Tank 9% | Hacker-Mutant 6% | Commander-Mutant 4% | Scavenger-Gunner Dominant Class ---------------- Scavenger-Mutant | -10/Materials Scavenger-Mutant | -10/Mines Scavenger-Mutant | -9/Materials Scavenger-Mutant | -9/Mines Scavenger-Mutant | -9/Exiles Scavenger-Mutant | -8/Mines Mutant | -8/Materials Mutant | -8/Storage Commander-Mutant | -8/Recycling Scavenger-Tank | -6/Factory Scavenger-Tank | -6/Lower Caves Scavenger-Gunner | -6/Lower Caves Scavenger-Gunner | -6/Data Miner Scavenger-Tank | -5/Proximity Caves Mutant | -5/Factory Hacker-Mutant | -5/Upper Caves Hacker-Mutant | -5/Upper Caves Hacker-Mutant | -4/Factory Hacker-Mutant | -4/Upper Caves Hacker-Mutant | -4/Upper Caves Hacker-Tank | -4/Warlord Hacker-Tank | -3/Proximity Caves Hacker-Mutant | -3/Research Mutant | -3/Testing Resources | -11 -10 -10 -9 -9 -9 -8 -8 -8 -8 -6 -6 -6 -6 -5 -5 -5 -5 -4 -4 -4 -4 -3 -3 -3 ----------- Run | Scr Mat Min Mat Min Exi Min Mat Sto Rec Fac Low Low Dat Pro Fac Upp Upp Fac Upp Upp War Pro Res Tes Matter Collected 5317 | 212 444 63 355 53 . 22 764 195 108 11 159 455 . 736 668 228 110 . 63 21 146 350 154 . Remotely . | . . . . . . . . . . . . . . . . . . . . . . . . . Salvage Created 8359 | . 585 35 1298 . . . 1067 456 970 11 167 423 . 626 1314 338 64 . . . . 693 312 . Parts 336 | . 32 6 63 . . . 50 11 40 1 2 15 . 15 55 9 2 . . . . 25 10 . Haulers Intercepted 13 | . 2 . 5 . . . 5 1 . . . . . . . . . . . . . . . . Recyclers Shooed 8 | . . . 3 . . . 1 1 2 . . . . . 1 . . . . . . . . . Parts Field Recycled . | . . . . . . . . . . . . . . . . . . . . . . . . . Retrieved Matter . | . . . . . . . . . . . . . . . . . . . . . . . . . Parts Self-Destructed 106 | . . . . . . . . . . . 7 13 . 29 . 8 13 . . 11 . 25 . . Prevented 4 | . . . . . . . . . . . . . . 1 . 3 . . . . . . . . Kills | -11 -10 -10 -9 -9 -9 -8 -8 -8 -8 -6 -6 -6 -6 -5 -5 -5 -5 -4 -4 -4 -4 -3 -3 -3 ------- Run | Scr Mat Min Mat Min Exi Min Mat Sto Rec Fac Low Low Dat Pro Fac Upp Upp Fac Upp Upp War Pro Res Tes Combat Hostiles Destroyed 145 | . 12 3 26 . . . 18 8 3 . 5 11 . 13 16 5 1 . . . . 16 8 . Guns 91 | . 12 3 21 . . . 12 6 2 . . 2 . 9 6 5 . . . . . 12 1 . Cannons 37 | . . . 4 . . . 6 2 1 . 1 6 . 4 8 . . . . . . 3 2 . AOE 12 | . . . . . . . . . . . 3 3 . . . . 1 . . . . . 5 . Classes Destroyed 16 | . 6 . 2 . . . 3 1 1 . 1 . . 1 1 . . . . . . . . . Worker 3 | . 1 . . . . . 1 . . . . . . . 1 . . . . . . . . . Builder 3 | . 1 . . . . . 1 . . . . . . . 1 . . . . . . . . . Tunneler 1 | . . . . . . . 1 . . . . . . . . . . . . . . . . . Hauler 13 | . 2 . 5 . . . 5 1 . . . . . . . . . . . . . . . . Recycler 16 | . . . 2 . . . 1 . 10 . . . . . 3 . . . . . . . . . Operator 3 | . . . . . . . 1 . . 1 . . . . 1 . . . . . . . . . Drone 3 | . . . . . . . . . 3 . . . . . . . . . . . . . . . Watcher 11 | . 1 . 4 . . . 2 1 . . . . . . 1 . . . . . . . 2 . Swarmer 37 | . 3 3 11 . . . . . . . 3 6 . . . . . . . . . 8 3 . Grunt 56 | . 9 . 8 . . . 11 6 2 . 1 4 . 7 1 4 1 . . . . 1 1 . Brawler 3 | . . . . . . . . . . . . . . 2 . . . . . . . 1 . . Duelist 5 | . . . . . . . 1 . . . . . . 3 . . . . . . . 1 . . Sentry 22 | . . . 7 . . . 6 1 . . . . . 1 4 1 . . . . . 1 1 . Hunter 9 | . . . . . . . . 1 . . . 1 . . 2 . . . . . . 4 1 . Programmer 11 | . . . . . . . . . . . . . . . 9 . . . . . . . 2 . Master Thief 1 | . . . . . . . . . . . 1 . . . . . . . . . . . . . Best Kill Streak 6 | . 4 2 6 . . . 5 2 4 1 3 5 . 3 3 4 1 . . . . 3 3 . Combat Bots Only 6 | . 4 2 6 . . . 4 2 2 . 3 5 . 3 2 4 1 . . . . 3 3 . Max Kills in Single Turn 2 | . 2 1 2 . . . 2 2 2 1 1 1 . 1 1 2 1 . . . . 2 2 . Gunslinging 1 | . . . 1 . . . . . . . . . . . . 1 . . . . . . . . Exploded 2 | . . . . . . . . . . . 1 1 . . . . 1 . . . . . 2 . Melee . | . . . . . . . . . . . . . . . . . . . . . . . . . Uniques/NPCs Destroyed . | . . . . . . . . . . . . . . . . . . . . . . . . . Combat | -11 -10 -10 -9 -9 -9 -8 -8 -8 -8 -6 -6 -6 -6 -5 -5 -5 -5 -4 -4 -4 -4 -3 -3 -3 -------- Run | Scr Mat Min Mat Min Exi Min Mat Sto Rec Fac Low Low Dat Pro Fac Upp Upp Fac Upp Upp War Pro Res Tes Damage Taken 20544 | . 426 108 1146 . 257 . 1738 901 . . 295 855 . 2913 3385 126 656 62 . 280 570 2885 3501 440 Core 3792 | . 63 21 258 . 30 . 175 192 . . 24 61 . 305 712 . 92 . . 33 90 416 887 433 Absorbed by Shields 707 | . . . . . . . . . . . . . . . . . . . . . 162 545 . . Reduced by Siege Mode 44 | . . . . . . . . . . . . . . . . . . . . . . . 44 . Redirected to Shielding 172 | . . . . . . . . . . . . . . 61 111 . . . . . . . . . Regen/Repaired (Parts) 199 | . . . 43 . . . 156 . . . . . . . . . . . . . . . . . Core Remaining (%) 50 | 100 . 66 . . . 28 . . 33 . . . . 54 . . 19 . . . . 53 . . Volleys Fired 589 | . 48 6 105 . 3 . 98 36 30 1 14 34 . 48 76 11 8 . . . . 53 18 . Largest 4 | . 2 2 2 . 2 . 2 2 2 3 3 3 . 3 3 2 3 . . . . 3 4 . Hottest 490 | . 130 130 133 . 80 . 126 126 123 184 184 211 . 154 269 98 158 . . . . 399 490 . Shots Fired 1263 | . 97 12 210 1 8 . 195 72 62 3 42 53 . 118 170 19 19 . . . . 138 44 . Gun 935 | . 97 12 169 1 4 . 168 60 30 2 24 18 . 79 109 19 16 . . . . 104 23 . Cannon 309 | . . . 41 . 4 . 27 12 32 1 14 31 . 37 61 . 3 . . . . 32 14 . Launcher 19 | . . . . . . . . . . . 4 4 . 2 . . . . . . . 2 7 . Special . | . . . . . . . . . . . . . . . . . . . . . . . . . Kinetic 374 | . 41 1 34 1 8 . 77 12 . . . . . 90 26 8 9 . . . . 51 16 . Thermal 808 | . 56 11 176 . . . 118 60 62 3 38 49 . 21 133 . . . . . . 71 10 . Explosive 16 | . . . . . . . . . . . 4 4 . 2 . . . . . . . . 6 . Electromagnetic 49 | . . . . . . . . . . . . . . 5 11 11 10 . . . . . 12 . Entropic 16 | . . . . . . . . . . . . . . . . . . . . . . 16 . . Robot Hit Streak 20 | . 13 1 14 2 5 . 20 10 9 2 7 6 . 11 9 4 6 . . . . 5 15 . Robot Miss Streak 14 | . 4 3 5 . 2 . 5 3 14 . 3 6 . 4 3 3 7 . . . . 5 4 . Penetration Max 1 | . . . . . . . 1 . . . . . . 1 1 . . . . . . 1 . . Secondary Targets 12 | . 2 . 3 . . . 2 1 . . . . . 2 . 2 . . . . . . . . Max Gunslinging Chain 1 | . 1 . 1 . . . 1 1 . . . . . 1 . 1 . . . . . . . . Shots Hit Robots 774 | . 47 5 132 1 5 . 148 51 29 1 22 25 . 75 118 12 12 . . . . 67 24 . Core Hits 381 | . 24 3 47 . 1 . 85 26 15 1 13 21 . 33 41 6 5 . . . 1 30 29 . Critical Kills 6 | . . . . . . . 6 . . . . . . . . . . . . . . . . . Critical Parts Destroyed 9 | . 2 . . . . . 6 . . . . . . 1 . . . . . . . . . . Critical Strikes 50 | . 2 . 5 . 1 . 16 5 1 . . 2 . 7 9 1 . . . . . 1 . . Burn 21 | . . . 5 . . . 3 5 1 . . 2 . . 5 . . . . . . . . . Destroy 18 | . 2 . . . 1 . 13 . . . . . . 1 . 1 . . . . . . . . Blast 11 | . . . . . . . . . . . . . . 6 4 . . . . . . 1 . . Melee Attacks . | . . . . . . . . . . . . . . . . . . . . . . . . . Impact . | . . . . . . . . . . . . . . . . . . . . . . . . . Slashing . | . . . . . . . . . . . . . . . . . . . . . . . . . Piercing . | . . . . . . . . . . . . . . . . . . . . . . . . . Sneak Attacks . | . . . . . . . . . . . . . . . . . . . . . . . . . Combat Hostiles . | . . . . . . . . . . . . . . . . . . . . . . . . . Follow-up Attacks . | . . . . . . . . . . . . . . . . . . . . . . . . . Damage Inflicted 19735 | . 678 107 2170 16 121 . 2784 1005 685 16 763 884 . 2166 3801 308 381 . . . 8 2326 1500 16 Guns 12147 | . 678 107 1681 16 30 . 2401 804 290 16 261 176 . 1105 2071 308 161 . . . . 1790 252 . Cannons 5354 | . . . 474 . 91 . 383 201 395 . 185 418 . 867 1388 . 91 . . . . 536 325 . Explosions 2187 | . . . . . . . . . . . 317 290 . 186 342 . 129 . . . . . 923 . Melee . | . . . . . . . . . . . . . . . . . . . . . . . . . Ramming 47 | . . . 15 . . . . . . . . . . 8 . . . . . . 8 . . 16 Kinetic 5843 | . 354 13 297 16 121 . 1254 117 . . . . . 1600 632 166 218 . . . . 730 325 . Thermal 11192 | . 324 94 1858 . . . 1530 888 685 16 446 594 . 341 2750 . 129 . . . . 1186 351 . Explosive 1848 | . . . . . . . . . . . 317 290 . 186 342 . . . . . . . 713 . Electromagnetic 395 | . . . . . . . . . . . . . . 31 77 142 34 . . . . . 111 . Impact . | . . . . . . . . . . . . . . . . . . . . . . . . . Slashing . | . . . . . . . . . . . . . . . . . . . . . . . . . Piercing . | . . . . . . . . . . . . . . . . . . . . . . . . . Entropic 410 | . . . . . . . . . . . . . . . . . . . . . . 410 . . Highest Corruption 20 | . 2 2 4 4 4 4 1 1 1 . . . . . 18 18 20 . . . . 1 3 3 Average Corruption 3 | . 2 2 4 4 4 4 1 1 1 . . . . . 6 18 19 . . . . 1 2 3 Corruption Purged . | . . . . . . . . . . . . . . . . . . . . . . . . . Corruption Blocked . | . . . . . . . . . . . . . . . . . . . . . . . . . Effects 156 | . 13 10 29 12 11 4 5 7 12 . . . . . 27 15 5 . . . . 3 1 2 Message Errors 36 | . 3 2 7 4 3 . 2 1 2 . . . . . 6 4 . . . . . 1 . 1 Matter Fused 43 | . 5 4 5 1 1 2 1 2 4 . . . . . 9 6 1 . . . . 2 . . Heat Flow Errors 11 | . 1 2 1 1 . . . 2 . . . . . . 2 1 1 . . . . . . . Energy Discharges 19 | . . 1 4 3 1 2 2 . 1 . . . . . 4 . . . . . . . . 1 Parts Rejected 2 | . . . 1 . . . . . 1 . . . . . . . . . . . . . . . Data Loss (minor) 18 | . 1 1 2 2 3 . . . 2 . . . . . 3 3 . . . . . . 1 . Data Loss (major) 4 | . 2 . 1 . . . . . . . . . . . . 1 . . . . . . . . Misfires 15 | . 1 . 6 1 2 . . 1 2 . . . . . 2 . . . . . . . . . Alerts 4 | . . . . . 1 . . 1 . . . . . . 1 . 1 . . . . . . . Misdirections 1 | . . . . . . . . . . . . . . . . . 1 . . . . . . . Weapon Failures 3 | . . . 2 . . . . . . . . . . . . . 1 . . . . . . . Overload Shots . | . . . . . . . . . . . . . . . . . . . . . . . . . Overflow Damage 252 | . . . . . . . . . 6 . 49 16 . 3 126 . . . . . . 19 33 . Projectiles 125 | . . . . . . . . . 6 . . 16 . 3 81 . . . . . . 19 . . Explosions 127 | . . . . . . . . . . . 49 . . . 45 . . . . . . . 33 . Melee . | . . . . . . . . . . . . . . . . . . . . . . . . . Knockbacks 32 | . . . 1 . 2 . 4 . . . . . . 9 5 . 2 . . . . 8 1 . Impact . | . . . . . . . . . . . . . . . . . . . . . . . . . Kinetic 31 | . . . 1 . 2 . 4 . . . . . . 9 5 . 2 . . . . 7 1 . Secondary 1 | . . . . . . . . . . . . . . . . . . . . . . 1 . . Self-Inflicted Damage 286 | . . . . . . . . . . . . 15 . . . . 39 . . . . . 225 7 Shots 5 | . . . . . . . . . . . . 1 . . . . 1 . . . . . 3 . Rammed 4 | . . . . . . . . . . . . . . . . . . . . . . . . 4 Targets Rammed 7 | . . . 1 . . . . . . . . . . 1 . . . . . . 1 . . 4 Kicked 3 | . . . 1 . . . . . . . . . . 1 . . . . . . 1 . . . Crushed . | . . . . . . . . . . . . . . . . . . . . . . . . . Highest Temperature 573 | . 153 204 256 190 36 . 315 379 120 57 243 214 . 411 573 251 278 . . . . 496 512 5 Average Temperature 114 | . 50 67 63 107 18 . 76 141 33 33 77 102 . 135 182 106 131 . . . . 165 203 5 Received Heat Transfer 3958 | . 156 9 246 . . . 657 477 . . 30 171 . 1166 297 36 72 9 . . 199 91 252 90 Effects 48 | . . . . . . . 4 3 . . . 2 . . 23 . 2 . . . . 5 9 . Shutdowns 12 | . . . . . . . . . . . . . . . 8 . . . . . . . 4 . Energy Bleed 9 | . . . . . . . 1 . . . . . . . 5 . . . . . . 3 . . Interference 18 | . . . . . . . 3 2 . . . 2 . . 7 . 2 . . . . 2 . . Matter Decay 1 | . . . . . . . . . . . . . . . 1 . . . . . . . . . Short Circuit 1 | . . . . . . . . . . . . . . . 1 . . . . . . . . . Damage (minor) 3 | . . . . . . . . 1 . . . . . . 1 . . . . . . . 1 . Damage (major) 4 | . . . . . . . . . . . . . . . . . . . . . . . 4 . Siege Activations 1 | . . . . . . . . . . . . . . . . . . . . . . . 1 . Total Turns 24 | . . . . . . . . . . . . . . . . . . . . . . . 24 . Longest Duration 24 | . . . . . . . . . . . . . . . . . . . . . . . 24 . Robots Corrupted . | . . . . . . . . . . . . . . . . . . . . . . . . . Combat Hostiles . | . . . . . . . . . . . . . . . . . . . . . . . . . Parts Fried 1 | . . . . . . . . . . . . . . . 1 . . . . . . . . . Impact Corruptions . | . . . . . . . . . . . . . . . . . . . . . . . . . Robots Melted 7 | . . . 2 . . . 1 . . . 1 . . . 2 . . . . . . 1 . . Combat Hostiles 5 | . . . 1 . . . . . . . 1 . . . 2 . . . . . . 1 . . Parts Melted 40 | . . . 7 . . . 7 10 1 . 2 4 . 1 7 . . . . . . 1 . . Heat Transferred 21501 | . 777 222 4588 . . . 3515 2109 1332 37 814 1160 . 631 4284 . 150 . . . . 1517 365 . Parts Sabotaged . | . . . . . . . . . . . . . . . . . . . . . . . . . Parts Stolen 6 | . . . . . . . . . . . 2 3 . . . 1 . . . . . . . . Parts Stripped . | . . . . . . . . . . . . . . . . . . . . . . . . . Power Chain Reactions 2 | . . . . . . . . . . . . . . . . . 1 . . . . . 1 . Missiles Intercepted . | . . . . . . . . . . . . . . . . . . . . . . . . . Alert | -11 -10 -10 -9 -9 -9 -8 -8 -8 -8 -6 -6 -6 -6 -5 -5 -5 -5 -4 -4 -4 -4 -3 -3 -3 ------- Run | Scr Mat Min Mat Min Exi Min Mat Sto Rec Fac Low Low Dat Pro Fac Upp Upp Fac Upp Upp War Pro Res Tes Peak Influence 976 | . 363 88 362 108 . . 346 372 262 976 . . . . 315 . . 141 . . . . 315 237 Initial 948 | . . . . 108 . . . 97 86 948 . . . . . . . 91 . . . . . 177 Average 166 | . 173 60 231 77 . . 195 170 154 927 . . . . 112 . . 106 . . . . 82 196 Maximum Alert Level 3 | . 1 . 1 . . . 1 1 1 3 . . . . 1 . . . . . . . 1 1 Low Security (%) 64 | 100 66 100 25 100 . 100 42 78 89 . . . . . 73 . . 100 . . . . 84 58 Level 1 33 | . 33 . 74 . . . 57 21 10 . . . . . 26 . . . . . . . 15 41 Level 2 . | . . . . . . . . . . . . . . . . . . . . . . . . . Level 3 1 | . . . . . . . . . . 100 . . . . . . . . . . . . . . Level 4 . | . . . . . . . . . . . . . . . . . . . . . . . . . Level 5 . | . . . . . . . . . . . . . . . . . . . . . . . . . High Security . | . . . . . . . . . . . . . . . . . . . . . . . . . Max Security . | . . . . . . . . . . . . . . . . . . . . . . . . . Squads Dispatched 30 | . 3 . 4 . . . 4 4 . 1 . . . 1 6 . . 1 . . . . 4 2 Investigation 4 | . . . 2 . . . 1 . . 1 . . . . . . . . . . . . . . Extermination 6 | . . . . . . . . . . . . . . . 4 . . 1 . . . . 1 . Reinforcement 15 | . 3 . 2 . . . 2 2 . . . . . . 2 . . . . . . . 2 2 Assault 2 | . . . . . . . . . . . . . . 1 . . . . . . . . 1 . Garrison 3 | . . . . . . . 1 2 . . . . . . . . . . . . . . . . Intercept . | . . . . . . . . . . . . . . . . . . . . . . . . . Searches Triggered . | . . . . . . . . . . . . . . . . . . . . . . . . . Construction Impeded . | . . . . . . . . . . . . . . . . . . . . . . . . . Haulers Reinforced 1 | . . . . . . . . . . . . . . . 1 . . . . . . . . . Active Scanning Responses . | . . . . . . . . . . . . . . . . . . . . . . . . . Cargo Convoy Interrupts 1 | . . . . . . . . . . . . . . . . . . . . . . . 1 . Stealth | -11 -10 -10 -9 -9 -9 -8 -8 -8 -8 -6 -6 -6 -6 -5 -5 -5 -5 -4 -4 -4 -4 -3 -3 -3 --------- Run | Scr Mat Min Mat Min Exi Min Mat Sto Rec Fac Low Low Dat Pro Fac Upp Upp Fac Upp Upp War Pro Res Tes Distress Signals 10 | . . . 4 . . . 2 . . . . . . . 1 . . 1 . . . . 1 1 Communications Jammed 6 | . . . . . . . . . . . . . . . 6 . . . . . . . . . Distress Signals 4 | . . . . . . . . . . . . . . . 4 . . . . . . . . . Times Spotted 366 | . 25 7 49 . 1 . 52 15 15 . 12 16 . 27 26 11 9 7 1 2 25 30 24 12 Peak Tracking Total 14 | . 4 3 6 . 2 1 5 3 2 . 4 7 . 5 4 8 6 4 . 2 14 11 10 11 Tactical Retreats 40 | . 4 1 2 . . . 18 1 . . . 2 . 2 1 1 . 1 . 1 1 1 4 . Traps | -11 -10 -10 -9 -9 -9 -8 -8 -8 -8 -6 -6 -6 -6 -5 -5 -5 -5 -4 -4 -4 -4 -3 -3 -3 ------- Run | Scr Mat Min Mat Min Exi Min Mat Sto Rec Fac Low Low Dat Pro Fac Upp Upp Fac Upp Upp War Pro Res Tes Traps Triggered 12 | . 6 . 1 . . . 2 1 . . . . . . 2 . . . . . . . . . Indirectly . | . . . . . . . . . . . . . . . . . . . . . . . . . Trap Hack Attempts 11 | . . . . . . . 11 . . . . . . . . . . . . . . . . . Triggered . | . . . . . . . . . . . . . . . . . . . . . . . . . Disarmed . | . . . . . . . . . . . . . . . . . . . . . . . . . Reprogrammed 2 | . . . . . . . 2 . . . . . . . . . . . . . . . . . Reused 1 | . . . . . . . 1 . . . . . . . . . . . . . . . . . Traps Extracted . | . . . . . . . . . . . . . . . . . . . . . . . . . Installed . | . . . . . . . . . . . . . . . . . . . . . . . . . Triggered 14 | . . . . . . . 1 . . . . . . 1 . . . . . . 11 . 1 . Exploded 1 | . . . . . 1 . . . . . . . . . . . . . . . . . . . Machines | -11 -10 -10 -9 -9 -9 -8 -8 -8 -8 -6 -6 -6 -6 -5 -5 -5 -5 -4 -4 -4 -4 -3 -3 -3 ---------- Run | Scr Mat Min Mat Min Exi Min Mat Sto Rec Fac Low Low Dat Pro Fac Upp Upp Fac Upp Upp War Pro Res Tes Machines Disabled 23 | . . . 1 . . . 2 . 1 . . . . 1 16 . . . . . . . 2 . Max in Single Turn 11 | . . . 1 . . . 1 . . . . . . . 11 . . . . . . . 1 . Garrison Access 1 | . . . . . . . . . . . . . . . . . . 1 . . . . . . Machines Sabotaged . | . . . . . . . . . . . . . . . . . . . . . . . . . Garrisons Compromised 1 | . . . . . . . . . . . . . . . . . . . . . . . 1 . Overloaded Fab Kills . | . . . . . . . . . . . . . . . . . . . . . . . . . Hacking | -11 -10 -10 -9 -9 -9 -8 -8 -8 -8 -6 -6 -6 -6 -5 -5 -5 -5 -4 -4 -4 -4 -3 -3 -3 --------- Run | Scr Mat Min Mat Min Exi Min Mat Sto Rec Fac Low Low Dat Pro Fac Upp Upp Fac Upp Upp War Pro Res Tes Machines Accessed 74 | . 7 1 14 . . . 14 4 12 2 . 1 4 . 4 . . 3 . . 5 . 2 1 Terminals 37 | . 5 . 10 . . . 8 4 6 1 . . . . 2 . . . . . . . 1 . Fabricators 1 | . . . . . . . . . . . . . . . 1 . . . . . . . . . Repair Stations 5 | . 1 . 1 . . . 2 . . . . . . . . . . . . . . . . 1 Recycling Units 10 | . 1 . 1 . . . 1 . 6 . . . . . . . . 1 . . . . . . Scanalyzers 7 | . . . 2 . . . 2 . . 1 . . . . . . . 1 . . . . 1 . Garrison Access 3 | . . . . . . . 1 . . . . . . . 1 . . 1 . . . . . . Total Hacks 238 | . 21 1 46 . . . 47 15 32 8 . 1 29 . 11 . . 7 . . 12 . 6 2 Successful 147 | . 9 1 24 . . . 27 5 22 5 . 1 29 . 4 . . 5 . . 12 . 3 . Failed 90 | . 12 . 21 . . . 20 10 10 3 . . . . 7 . . 2 . . . . 3 2 Catastrophic 13 | . 1 . 1 . . . 1 3 3 2 . . . . 1 . . . . . . . 1 . Database Lockouts 1 | . . . 1 . . . . . . . . . . . . . . . . . . . . . Manual 99 | . 9 . 30 . 1 . 24 10 11 5 . . . . 6 . . 1 . . 1 . 1 . Terminals 117 | . 12 . 34 . . . 28 15 14 6 . . . . 6 . . . . . . . 2 . Fabricators 4 | . . . . . . . . . . . . . . . 4 . . . . . . . . . Repair Stations 12 | . 3 . 2 . . . 5 . . . . . . . . . . . . . . . . 2 Recycling Units 34 | . 6 . 2 . . . 6 . 18 . . . . . . . . 2 . . . . . . Scanalyzers 23 | . . . 8 . . . 6 . . 2 . . . . . . . 3 . . . . 4 . Garrison Access 5 | . . . . . . . 2 . . . . . . . 1 . . 2 . . . . . . Terminal Hacks 84 | . 2 1 9 . . . 14 4 6 3 . 1 29 . 2 . . . . . 12 . 1 . Record 23 | . . . . . . . . . . 1 . . 11 . . . . . . . 11 . . . Part Schematic 11 | . . . . . . . . 1 . . . . 10 . . . . . . . . . . . Robot Schematic 5 | . . . . . . . . . . . . . 5 . . . . . . . . . . . Robot Analysis 5 | . . . 1 . . . 3 1 . . . . . . . . . . . . . . . . Prototype ID Bank 10 | . 1 . 1 . . . 3 . 2 . . . 3 . . . . . . . . . . . Open Door 4 | . . 1 . . . . . 1 . . . 1 . . . . . . . . 1 . . . Branch Access Points 1 | . . . . . . . . . 1 . . . . . . . . . . . . . . . Machine Index 1 | . . . 1 . . . . . . . . . . . . . . . . . . . . . Terminal Index 2 | . . . 1 . . . 1 . . . . . . . . . . . . . . . . . Repair Station Index 1 | . . . . . . . . . 1 . . . . . . . . . . . . . . . Alert Level 8 | . . . 1 . . . 3 . 1 1 . . . . 1 . . . . . . . 1 . Unreport Threat 6 | . 1 . 2 . . . 1 . . 1 . . . . 1 . . . . . . . . . Locate Traps 1 | . . . . . . . . 1 . . . . . . . . . . . . . . . . Dispatch Records 1 | . . . . . . . 1 . . . . . . . . . . . . . . . . . Patrol Status 2 | . . . . . . . 2 . . . . . . . . . . . . . . . . . Recall Reinforcements 1 | . . . 1 . . . . . . . . . . . . . . . . . . . . . Zone Layout 2 | . . . 1 . . . . . 1 . . . . . . . . . . . . . . . Fabricator Hacks . | . . . . . . . . . . . . . . . . . . . . . . . . . Repair Station Hacks 7 | . 1 . 2 . . . 4 . . . . . . . . . . . . . . . . . Scan Component 4 | . 1 . 1 . . . 2 . . . . . . . . . . . . . . . . . Repair 3 | . . . 1 . . . 2 . . . . . . . . . . . . . . . . . Recycling Unit Hacks 12 | . 1 . 2 . . . . . 9 . . . . . . . . . . . . . . . Process 1 | . . . . . . . . . 1 . . . . . . . . . . . . . . . Report Inventory 8 | . 1 . 1 . . . . . 6 . . . . . . . . . . . . . . . Retrieve Components 3 | . . . 1 . . . . . 2 . . . . . . . . . . . . . . . Scanalyzer 15 | . . . 6 . . . 2 . . 2 . . . . . . . 3 . . . . 2 . Insert Component 9 | . . . 4 . . . 1 . . 1 . . . . . . . 2 . . . . 1 . Analyze 6 | . . . 2 . . . 1 . . 1 . . . . . . . 1 . . . . 1 . Garrison Access Hacks 1 | . . . . . . . . . . . . . . . . . . 1 . . . . . . Seal Access 1 | . . . . . . . . . . . . . . . . . . 1 . . . . . . Unauthorized Hacks 28 | . 5 . 5 . . . 7 1 7 . . . . . 2 . . 1 . . . . . . Terminals 14 | . 1 . 5 . . . 3 1 3 . . . . . 1 . . . . . . . . . Track 2 | . . . 1 . . . . . 1 . . . . . . . . . . . . . . . Botnet 10 | . 1 . 3 . . . 2 1 2 . . . . . 1 . . . . . . . . . Operators 2 | . . . 1 . . . 1 . . . . . . . . . . . . . . . . . Fabricators 1 | . . . . . . . . . . . . . . . 1 . . . . . . . . . Report 1 | . . . . . . . . . . . . . . . 1 . . . . . . . . . Repair Stations . | . . . . . . . . . . . . . . . . . . . . . . . . . Recycling Units 11 | . 4 . . . . . 3 . 4 . . . . . . . . . . . . . . . Monitor 3 | . 1 . . . . . 1 . 1 . . . . . . . . . . . . . . . Reject 3 | . 1 . . . . . 1 . 1 . . . . . . . . . . . . . . . Recyclers 3 | . 1 . . . . . 1 . 1 . . . . . . . . . . . . . . . Mask 2 | . 1 . . . . . . . 1 . . . . . . . . . . . . . . . Scanalyzers . | . . . . . . . . . . . . . . . . . . . . . . . . . Garrison Access 2 | . . . . . . . 1 . . . . . . . . . . 1 . . . . . . Watchers 2 | . . . . . . . 1 . . . . . . . . . . 1 . . . . . . Data Cores Recovered 3 | . . . . . . . 1 . . 1 . . . . 1 . . . . . . . . . Used 1 | . . . . . . . . . . 1 . . . . . . . . . . . . . . Hacking Detections 59 | . 7 . 14 . . . 12 4 10 2 . . . . 4 . . 3 . . . . 2 1 Full Trace Events 5 | . 1 . 2 . . . 1 . . 1 . . . . . . . . . . . . . . Feedback Events . | . . . . . . . . . . . . . . . . . . . . . . . . . Feedback Blocked . | . . . . . . . . . . . . . . . . . . . . . . . . . Robot Schematics Acquired 5 | . . . . . . . . . . . . . 5 . . . . . . . . . . . Robots Built . | . . . . . . . . . . . . . . . . . . . . . . . . . Authchips . | . . . . . . . . . . . . . . . . . . . . . . . . . Time . | . . . . . . . . . . . . . . . . . . . . . . . . . Total Robot Build Rating . | . . . . . . . . . . . . . . . . . . . . . . . . . Part Schematics Acquired 17 | . . . 2 . . . 1 1 . 1 . . 10 . . . . 1 . . . . 1 . Parts Built . | . . . . . . . . . . . . . . . . . . . . . . . . . Authchips . | . . . . . . . . . . . . . . . . . . . . . . . . . Time . | . . . . . . . . . . . . . . . . . . . . . . . . . Total Part Build Rating . | . . . . . . . . . . . . . . . . . . . . . . . . . Parts Repaired 3 | . . . 1 . . . 2 . . . . . . . . . . . . . . . . . Time 102 | . . . 32 . . . 70 . . . . . . . . . . . . . . . . . Parts Recycled . | . . . . . . . . . . . . . . . . . . . . . . . . . Recycled Matter . | . . . . . . . . . . . . . . . . . . . . . . . . . Retrieved Matter . | . . . . . . . . . . . . . . . . . . . . . . . . . Retrieved Components 14 | . . . 9 . . . . . 5 . . . . . . . . . . . . . . . Parts Scanalyzed 6 | . . . 2 . . . 1 . . 1 . . . . . . . 1 . . . . 1 . Part Schematics Acquired 6 | . . . 2 . . . 1 . . 1 . . . . . . . 1 . . . . 1 . Parts Damaged 1 | . . . . . . . . . . . . . . . . . . 1 . . . . . . Bothacking | -11 -10 -10 -9 -9 -9 -8 -8 -8 -8 -6 -6 -6 -6 -5 -5 -5 -5 -4 -4 -4 -4 -3 -3 -3 ------------ Run | Scr Mat Min Mat Min Exi Min Mat Sto Rec Fac Low Low Dat Pro Fac Upp Upp Fac Upp Upp War Pro Res Tes Used RIF Installer . | . . . . . . . . . . . . . . . . . . . . . . . . . Robots Hacked . | . . . . . . . . . . . . . . . . . . . . . . . . . Non-combat . | . . . . . . . . . . . . . . . . . . . . . . . . . Combat . | . . . . . . . . . . . . . . . . . . . . . . . . . Robot Hacks Applied . | . . . . . . . . . . . . . . . . . . . . . . . . . Relay Couplers Released . | . . . . . . . . . . . . . . . . . . . . . . . . . Fabnet Peak Effective % . | . . . . . . . . . . . . . . . . . . . . . . . . . Robots Rewired 2 | . . . . . . . . . . . . . . 1 . . . . . . . 1 . . Allies Hacked . | . . . . . . . . . . . . . . . . . . . . . . . . . Hacks Repelled . | . . . . . . . . . . . . . . . . . . . . . . . . . Allies | -11 -10 -10 -9 -9 -9 -8 -8 -8 -8 -6 -6 -6 -6 -5 -5 -5 -5 -4 -4 -4 -4 -3 -3 -3 -------- Run | Scr Mat Min Mat Min Exi Min Mat Sto Rec Fac Low Low Dat Pro Fac Upp Upp Fac Upp Upp War Pro Res Tes Total Allies 17 | . . 3 . . . . . 10 . . . . . 2 . . 1 . . . . 1 . . Largest Group 10 | . . 3 2 . . . . 10 8 4 4 4 . 1 . . 1 . . . . 1 . . Highest-Rated Group 173 | . . 40 32 . . . . 173 141 64 64 64 . 96 . . 140 . . . . 47 . . Highest-Rated Ally 140 | . . 16 16 . . . . 29 29 16 16 16 . 96 . . 140 . . . . 47 . . Total Orders 39 | . . . . . . . 13 4 . 3 . . . . 2 . . 3 4 4 3 3 . . STAY 3 | . . . . . . . . . . 1 . . . . 1 . . . . 1 . . . . ROAM 1 | . . . . . . . . . . . . . . . . . . . . . 1 . . . FOLLOW 1 | . . . . . . . . . . 1 . . . . . . . . . . . . . . EXPLORE 18 | . . . . . . . 6 . . 1 . . . . 1 . . 2 3 2 1 2 . . RETURN 16 | . . . . . . . 7 4 . . . . . . . . . 1 1 1 1 1 . . Ally Attacks 349 | . . 16 46 . . . . 40 141 . 41 7 . 25 . . 14 . . . . 19 . . Total Damage 4623 | . . 142 403 . . . . 524 958 . 363 61 . 857 . . 1028 . . . . 287 . . Kills 56 | . . 4 7 . . . . 5 24 . 3 . . 6 . . 5 . . . . 2 . . Allies Corrupted . | . . . . . . . . . . . . . . . . . . . . . . . . . Allies Melted 2 | . . . . . . . . . . . . . . . . . . . . . 2 . . . Intel | -11 -10 -10 -9 -9 -9 -8 -8 -8 -8 -6 -6 -6 -6 -5 -5 -5 -5 -4 -4 -4 -4 -3 -3 -3 ------- Run | Scr Mat Min Mat Min Exi Min Mat Sto Rec Fac Low Low Dat Pro Fac Upp Upp Fac Upp Upp War Pro Res Tes Robot Analysis Total 5 | . . . 1 . . . 3 1 . . . . . . . . . . . . . . . . Derelict Logs Recovered 12 | . . 3 . 1 . . . . . . 1 2 . . . 1 . . 2 2 . . . . Drone Launches 24 | . . . . . . . 8 4 . 1 . . . . 1 . . 2 3 1 1 3 . . Drone Recoveries 18 | . . . . . . . 8 4 . . . . . . . . . 1 1 1 1 2 . . Exploration | -11 -10 -10 -9 -9 -9 -8 -8 -8 -8 -6 -6 -6 -6 -5 -5 -5 -5 -4 -4 -4 -4 -3 -3 -3 ------------- Run | Scr Mat Min Mat Min Exi Min Mat Sto Rec Fac Low Low Dat Pro Fac Upp Upp Fac Upp Upp War Pro Res Tes Turns Passed 18477 | 78 1263 858 1933 553 404 128 2302 843 906 209 642 803 117 820 2021 400 69 333 352 365 1000 1243 704 131 Spaces Moved 11711 | 57 655 660 1206 434 328 105 1175 357 562 124 478 565 98 474 1179 492 28 263 287 302 764 409 537 172 Core 548 | 9 1 . . . . . . . . . . . . . 74 . . . . . . 18 274 172 Treads 1901 | . 5 . . . . . 953 357 106 . . . . . . . . . . . . 217 263 . Legs 7892 | 48 649 660 1206 434 328 105 222 . 456 124 478 565 98 474 341 . 15 263 287 302 764 73 . . Wheels 644 | . . . . . . . . . . . . . . . 644 . . . . . . . . . Hover 726 | . . . . . . . . . . . . . . . 120 492 13 . . . . 101 . . Flight . | . . . . . . . . . . . . . . . . . . . . . . . . . Fastest Speed 50 | 50 120 120 120 120 120 120 120 145 110 112 112 112 120 120 53 53 101 112 112 112 114 50 50 50 Average Speed 127 | 108 147 120 120 120 120 120 147 190 135 112 112 120 120 123 137 65 143 112 112 112 120 239 98 50 Slowest Speed 850 | 120 200 120 260 120 120 120 225 232 232 112 112 190 120 190 850 106 250 112 112 114 186 400 400 50 Overloaded Moves . | . . . . . . . . . . . . . . . . . . . . . . . . . Propulsion Burnouts . | . . . . . . . . . . . . . . . . . . . . . . . . . Robots Hopped . | . . . . . . . . . . . . . . . . . . . . . . . . . Cave-ins Triggered . | . . . . . . . . . . . . . . . . . . . . . . . . . Exploration Rate (%) 55 | 5 88 98 76 90 63 31 78 58 95 4 57 62 74 49 26 65 5 7 86 74 95 54 18 25 Regions Visited 24 Branch Regions 17 Pre-discovered Areas 3 | . . 1 . . . . . . . . . . 1 . . 1 . . . . . . . . Known Exits Taken 10 | . . . 1 1 1 1 1 1 . 1 . . . 1 . . . . . . . 1 1 . Unknown Exits Taken 14 | 1 1 1 . . . . . . 1 . 1 1 1 . 1 1 1 1 1 1 1 . . . Scrap Searched 21 | . . 1 . 3 . 1 . . . . 4 2 . 3 . 3 . . 2 1 . 1 . . Spaces Dug 25 | . . . . . . . . . . . 8 . . . . . . . . . . . 17 . Terrain Destroyed 468 | . . . . . 2 . 11 2 4 . 24 44 . 43 61 1 2 . . . . 94 180 . Melee . | . . . . . . . . . . . . . . . . . . . . . . . . . Projectile 167 | . . . . . 2 . 11 2 4 . 1 . . 27 24 1 . . . . . 89 6 . AOE 301 | . . . . . . . . . . . 23 44 . 16 37 . 2 . . . . 5 174 . Terrain Rammed . | . . . . . . . . . . . . . . . . . . . . . . . . . Walls Destroyed . | . . . . . . . . . . . . . . . . . . . . . . . . . Machines Disabled . | . . . . . . . . . . . . . . . . . . . . . . . . . Actions | -11 -10 -10 -9 -9 -9 -8 -8 -8 -8 -6 -6 -6 -6 -5 -5 -5 -5 -4 -4 -4 -4 -3 -3 -3 --------- Run | Scr Mat Min Mat Min Exi Min Mat Sto Rec Fac Low Low Dat Pro Fac Upp Upp Fac Upp Upp War Pro Res Tes Total 14043 | 72 853 714 1487 464 333 107 1551 449 650 192 550 638 97 605 1447 550 40 301 319 326 850 558 673 217 Wait 1066 | . 110 45 118 24 1 2 191 33 30 61 47 9 . 36 97 20 . 20 23 12 50 53 78 6 Move 11687 | 56 654 659 1205 433 327 104 1174 356 561 123 477 564 97 473 1178 491 27 262 286 301 763 408 536 172 Hop . | . . . . . . . . . . . . . . . . . . . . . . . . . Pick Up 158 | 10 7 1 12 2 1 . 23 6 9 3 3 6 . 10 21 7 . 7 3 2 8 4 12 1 Fast Attach 126 | 2 11 . 7 . . . 9 3 2 . 1 6 . 11 34 5 2 3 1 4 8 4 13 . Attach 106 | 4 4 1 6 . . 1 7 7 1 3 2 7 . 12 16 6 3 4 1 . . 11 10 . Detach 30 | . 2 . 4 . . . 1 3 . . . 3 . 3 4 2 . 2 . 1 2 2 1 . Swap 80 | . 9 1 11 4 . . 16 4 7 . 4 2 . 1 8 2 . 1 . 2 1 5 2 . Drop 124 | . 8 1 18 1 1 . 21 . 10 1 1 5 . 6 13 5 . 2 5 3 17 2 3 1 Fire 589 | . 48 6 105 . 3 . 98 36 30 1 14 34 . 48 76 11 8 . . . . 53 18 . Melee . | . . . . . . . . . . . . . . . . . . . . . . . . . Ram 4 | . . . . . . . . . . . . . . . . . . . . . . . . 4 Kick 3 | . . . 1 . . . . . . . . . . 1 . . . . . . 1 . . . Crush . | . . . . . . . . . . . . . . . . . . . . . . . . . Escape Stasis 33 | . . . . . . . . . . . . . . . . . . . . . . . . 33 Rewire 26 | . . . . . . . . 1 . . 1 2 . 4 . 1 . . . 1 . 16 . . Trap 11 | . . . . . . . 11 . . . . . . . . . . . . . . . . . Miscellaneous . | . . . . . . . . . . . . . . . . . . . . . . . . . Route ------- -11/Scrapyard -10/Materials (discovered 3 exits: *Mat x2 / *Min) -10/Mines (discovered 2 exits: *Mat x2) -9/Materials (discovered 4 exits: *Mat x3 / *Min) -9/Mines (discovered 2 exits: *Exi / *Zio) -9/Exiles -8/Mines -8/Materials (discovered 3 exits: *Fac x2 / *Sto) -8/Storage -8/Recycling -6/Factory -6/Lower Caves -6/Lower Caves (discovered 2 exits: Fac / *Dat) -6/Data Miner -5/Proximity Caves -5/Factory (discovered 2 exits: [*Upp x2]) -5/Upper Caves -5/Upper Caves (discovered 2 exits: *Fac x2) -4/Factory -4/Upper Caves -4/Upper Caves -4/Warlord -3/Proximity Caves -3/Research (discovered 2 exits: Res / *Tes) -3/Testing History --------- Turn | Location | Event 6 | -11/Scrapyard | Discovered new exit (range 15) 79 | -11/Scrapyard | Entered Materials 317 | -10/Materials | Build established: Mutant 628 | -10/Materials | Build established: Scavenger-Mutant 700 | -10/Materials | Discovered new exit (range 11) 1064 | -10/Materials | Discovered new exit (range 3) 1258 | -10/Materials | Discovered new exit (range 10) 1342 | -10/Materials | Entered Mines 1384 | -10/Mines | Discovered new exit (range 4) 1461 | -10/Mines | Met a Derelict bent on vengeance 1503 | -10/Mines | Learned location of 1 exit from Materials 1504 | -10/Mines | Assisted by bots powering up and referring to "LRC-V3" 1521 | -10/Mines | Assembled infested the area 1526 | -10/Mines | Assisted by a Guerilla fighting off Assembled 1727 | -10/Mines | Found the Drone Emporium 1732 | -10/Mines | Found Prototype Device 1816 | -10/Mines | Learned location of Zion (-7) 1821 | -10/Mines | Discovered new exit (range 8) 2200 | -10/Mines | Entered Materials 2200 | -9/Materials | Accompanied by 2 allies 2200 | -9/Materials | Evolved 2 slots: Propulsion x2 2201 | -9/Materials | Identified exit to Mines 2202 | -9/Materials | Identified exit to Materials 2286 | -9/Materials | Repaired Particle Gun 2742 | -9/Materials | Discovered exit to Materials (range 12) 3023 | -9/Materials | Central database locked down 3503 | -9/Materials | Core integrity fell below 50% 3752 | -9/Materials | Identified Sensor Drone Bay 3795 | -9/Materials | Discovered exit to Materials (range 13) 4133 | -9/Materials | Entered Mines 4234 | -9/Mines | A weapon hastily lodged in a ceiling crevice suddenly fell to the ground 4245 | -9/Mines | Learned Materials stockpile data 4333 | -9/Mines | A Derelict revealed a hidden shortcut to a safe place 4340 | -9/Mines | Identified exit to Zion 4642 | -9/Mines | Discovered new exit (range 10) 4652 | -9/Mines | Identified exit to Exiles 4681 | -9/Mines | Deemed a non-threat by the Exiles lab entrance 4686 | -9/Mines | Entered Exiles 4687 | -9/Exiles | Identified exit to Mines 4715 | -9/Exiles | Met 8R-AWN 4736 | -9/Exiles | Met EX-HEX 4794 | -9/Exiles | Met EX-BIN 4811 | -9/Exiles | Aligned with FarCom system 4812 | -9/Exiles | Given EX-Vault access code 4852 | -9/Exiles | Opened EX-Vault 4891 | -9/Exiles | Warned to stay clear of 0b10 Research branches 4902 | -9/Exiles | Exiles lab attacked by MAIN.C 4939 | -9/Exiles | Found Prototype Device 5063 | -9/Exiles | Attacked by the Exiles 5090 | -9/Exiles | Left Exiles lab with PSU Rigger 5090 | -9/Exiles | Entered Mines 5206 | -8/Mines | Discovered exit to Materials (range 9) 5218 | -8/Mines | Entered Materials 5218 | -8/Materials | Evolved 2 slots: Utility x2 5218 | -8/Materials | Identified PSU Rigger 5374 | -8/Materials | Repaired Hvy. Assault Rifle 5632 | -8/Materials | Found Prototype Launcher 5635 | -8/Materials | Found Prototype Launcher 5898 | -8/Materials | Lost 3 parts (1p1n1w) 6178 | -8/Materials | Repaired Pulse Rifle 6387 | -8/Materials | Build established: Mutant 6569 | -8/Materials | Discovered new exit (range 16) 6590 | -8/Materials | Identified exit to Factory 6679 | -8/Materials | Garrison activated, responded to threat 6973 | -8/Materials | Discovered new exit (range 9) 7101 | -8/Materials | Discovered exit to Factory (range 10) 7211 | -8/Materials | Identified exit to Storage 7520 | -8/Materials | Entered Storage 7637 | -8/Storage | Lost 3 parts (1p2n) 7840 | -8/Storage | Used back door to open Recycling access 7840 | -8/Storage | Discovered new exit (range 5) 7845 | -8/Storage | Identified exit to Recycling 7964 | -8/Storage | Core integrity fell below 50% 8153 | -8/Storage | Assisted by bots powering up and referring to "LRC-V3" 8179 | -8/Storage | Garrison activated, responded to threat 8363 | -8/Storage | Entered Recycling 8363 | -8/Recycling | Accompanied by 8 allies 8365 | -8/Recycling | Spotter reported a threat 8365 | -8/Recycling | Spotter reported a threat 8380 | -8/Recycling | Spotter reported a threat 8392 | -8/Recycling | Spotter reported a threat 8418 | -8/Recycling | Spotter reported a threat 8418 | -8/Recycling | Spotter reported a threat 8422 | -8/Recycling | Spotter reported a threat 8445 | -8/Recycling | Build established: Commander-Mutant 8450 | -8/Recycling | Spotter reported a threat 8500 | -8/Recycling | Spotter reported a threat 8583 | -8/Recycling | Spotter reported a threat 8590 | -8/Recycling | Spotter reported a threat 8708 | -8/Recycling | Spotter reported a threat 8718 | -8/Recycling | Spotter reported a threat 8807 | -8/Recycling | Spotter reported a threat 8846 | -8/Recycling | Spotter reported a threat 8891 | -8/Recycling | Spotter reported a threat 8895 | -8/Recycling | Spotter reported a threat 8927 | -8/Recycling | Spotter reported a threat 8974 | -8/Recycling | Spotter reported a threat 9007 | -8/Recycling | Spotter reported a threat 9014 | -8/Recycling | Spotter reported a threat 9015 | -8/Recycling | Spotter reported a threat 9042 | -8/Recycling | Spotter reported a threat 9068 | -8/Recycling | Spotter reported a threat 9101 | -8/Recycling | Spotter reported a threat 9110 | -8/Recycling | Spotter reported a threat 9110 | -8/Recycling | Spotter reported a threat 9112 | -8/Recycling | Spotter reported a threat 9153 | -8/Recycling | Spotter reported a threat 9163 | -8/Recycling | Spotter reported a threat 9187 | -8/Recycling | Spotter reported a threat 9187 | -8/Recycling | Spotter reported a threat 9201 | -8/Recycling | Spotter reported a threat 9201 | -8/Recycling | Spotter reported a threat 9214 | -8/Recycling | Discovered new exit (range 15) 9231 | -8/Recycling | Identified Rocket Array 9232 | -8/Recycling | Spotter reported a threat 9232 | -8/Recycling | Spotter reported a threat 9269 | -8/Recycling | Entered Factory 9269 | -6/Factory | Accompanied by 4 allies 9269 | -6/Factory | Evolved 4 slots: Power x1, Utility x2, Weapon x1 9333 | -6/Factory | Discovered new exit (range 14) 9460 | -6/Factory | Identified exit to Lower Caves 9478 | -6/Factory | Entered Lower Caves 9478 | -6/Lower Caves | Accompanied by 4 allies 9478 | -6/Lower Caves | Spotted KI-SUZ(f) 9478 | -6/Lower Caves | Spotted U8-IE8(f) 9479 | -6/Lower Caves | Encountered a Master Thief 9479 | -6/Lower Caves | Encountered a Master Thief 9479 | -6/Lower Caves | PSU Rigger stolen by Master Thief 9481 | -6/Lower Caves | Spotted 11-I56(f) 9482 | -6/Lower Caves | Encountered a Master Thief 9483 | -6/Lower Caves | Sensor Drone Bay stolen by Master Thief 9491 | -6/Lower Caves | Destroyed 11-I56(f) 9510 | -6/Lower Caves | Attracted the attention of an 0b10 checkpoint 9575 | -6/Lower Caves | Build established: Scavenger-Tank 9587 | -6/Lower Caves | Learned Factory garrison access intel 9904 | -6/Lower Caves | Discovered new exit (range 3) 10120 | -6/Lower Caves | Entered another Lower Caves area 10120 | -6/Lower Caves | Accompanied by 4 allies 10121 | -6/Lower Caves | Encountered a Warlord checkpoint 10307 | -6/Lower Caves | Attracted the attention of an 0b10 base 10413 | -6/Lower Caves | Lost 8 parts (1p3n3u1w) 10605 | -6/Lower Caves | Spotted Y8-KCF(f) 10605 | -6/Lower Caves | Spotted 0O-2YU(f) 10606 | -6/Lower Caves | Spotted AJ-W8Q(f) 10607 | -6/Lower Caves | Encountered a Master Thief 10607 | -6/Lower Caves | Encountered a Master Thief 10607 | -6/Lower Caves | Encountered a Master Thief 10613 | -6/Lower Caves | Mak. Transmission Jammer stolen by Master Thief 10614 | -6/Lower Caves | Fusion Compressor stolen by Master Thief 10614 | -6/Lower Caves | Hvy. Plasma Cannon stolen by Master Thief 10628 | -6/Lower Caves | Discovered new exit (range 5) 10675 | -6/Lower Caves | Learned 4 Factory zone layouts 10678 | -6/Lower Caves | Identified exit to Factory 10760 | -6/Lower Caves | Spotted B-75 Beast 10923 | -6/Lower Caves | Entered Data Miner 10923 | -6/Data Miner | Discovered new exit (range 6) 10950 | -6/Data Miner | Met Data Miner 10971 | -6/Data Miner | Build established: Scavenger-Gunner 10989 | -6/Data Miner | Learned location of Section 7 (-2) 10989 | -6/Data Miner | Acquired the access code to Warlord's prototype stash 11012 | -6/Data Miner | Received God Mode back door access code from Data Miner 11040 | -6/Data Miner | Entered Proximity Caves 11116 | -5/Proximity Caves | Lost 4 parts (1p1n1u1w) 11240 | -5/Proximity Caves | Escorted by Enhanced Grunt 11425 | -5/Proximity Caves | Attracted the attention of an 0b10 outpost 11464 | -5/Proximity Caves | Lost 3 parts (2n1w) 11546 | -5/Proximity Caves | Lost 4 parts (2p1n1w) 11597 | -5/Proximity Caves | Lost 4 parts (2n2w) 11805 | -5/Proximity Caves | Lost 7 parts (1p1n1u4w) 11851 | -5/Proximity Caves | Discovered exit to Factory (range 5) 11860 | -5/Proximity Caves | Entered Factory 11860 | -5/Factory | Evolved 2 slots: Propulsion x1, Utility x1 11862 | -5/Factory | Loaded intel: 4 garrison access locations 12024 | -5/Factory | Build established: Mutant 12137 | -5/Factory | Discovered new exit (range 62) 12507 | -5/Factory | Lost 10 parts (1p4n3u2w) 13152 | -5/Factory | Build established: Scavenger-Tank 13300 | -5/Factory | Lost 3 parts (1p1n1w) 13490 | -5/Factory | Core integrity fell below 50% 13516 | -5/Factory | Lost 6 parts (2p1n2u1w) 13588 | -5/Factory | System corruption reached 10% 13706 | -5/Factory | Lost 3 parts (2n1u) 13817 | -5/Factory | Build established: Scavenger-Gunner 13871 | -5/Factory | Discovered new exit (range 7) 13881 | -5/Factory | Entered Upper Caves 13881 | -5/Upper Caves | Spotted 49-V5G(f) 13882 | -5/Upper Caves | Encountered a Master Thief 13882 | -5/Upper Caves | Imp. Coolant Injector stolen by Master Thief 13888 | -5/Upper Caves | Lost 4 parts (1n1u2w) 13930 | -5/Upper Caves | Spotted B-75 Beast 13972 | -5/Upper Caves | Attracted the attention of an 0b10 outpost 13984 | -5/Upper Caves | Encountered a Warlord checkpoint 14164 | -5/Upper Caves | Discovered new exit (range 7) 14281 | -5/Upper Caves | Entered another Upper Caves area 14285 | -5/Upper Caves | Discovered new exit (range 9) 14300 | -5/Upper Caves | 1C-UTU showed up to help 14302 | -5/Upper Caves | 1C-UTU revealed a hidden path 14339 | -5/Upper Caves | Lost 5 parts (3n1u1w) 14350 | -5/Upper Caves | Entered Factory 14350 | -4/Factory | Evolved 2 slots: Utility x2 14597 | -4/Factory | Build established: Hacker-Mutant 14599 | -4/Factory | Discovered new exit (range 10) 14683 | -4/Factory | Entered Upper Caves 15007 | -4/Upper Caves | Discovered new exit (range 19) 15029 | -4/Upper Caves | Learned location of 1 exit from Proximity Caves 15035 | -4/Upper Caves | Entered another Upper Caves area 15125 | -4/Upper Caves | Lost 3 parts (1u2w) 15134 | -4/Upper Caves | Encountered a Warlord checkpoint 15147 | -4/Upper Caves | Learned Research trap positions 15303 | -4/Upper Caves | Discovered new exit (range 21) 15329 | -4/Upper Caves | Learned 8 Research zone layouts 15400 | -4/Upper Caves | Entered Warlord 15527 | -4/Warlord | Found Signal Generator 15639 | -4/Warlord | Build established: Derelict-Tank 15729 | -4/Warlord | Discovered new exit (range 83) 15804 | -4/Warlord | Met Warlord 15815 | -4/Warlord | Opened Warlord's prototype stash 15829 | -4/Warlord | Warlord's base attacked by MAIN.C 15850 | -4/Warlord | Found Prototype Reactor 15850 | -4/Warlord | Identified Vortex Chain Reactor 15857 | -4/Warlord | Found Prototype Hackware 15857 | -4/Warlord | Identified System Mapper 15863 | -4/Warlord | Found Prototype Device 15863 | -4/Warlord | Identified Exp. Phase Shifter 15878 | -4/Warlord | Found Prototype Device 15878 | -4/Warlord | Identified Thermal Barrier 16089 | -4/Warlord | Found Prototype Energy Gun 16141 | -4/Warlord | Build established: Hacker-Tank 16179 | -4/Warlord | Warlord forces counterattacked 16228 | -4/Warlord | Spotted Striker 16233 | -4/Warlord | Spotted Executioner 16313 | -4/Warlord | Spotted Executioner 16400 | -4/Warlord | Entered Proximity Caves 16401 | -3/Proximity Caves | Identified exit to Research 16581 | -3/Proximity Caves | Lost 5 parts (2n2u1w) 16764 | -3/Proximity Caves | Attracted the attention of an 0b10 outpost 16844 | -3/Proximity Caves | Lost 3 parts (2n1u) 16985 | -3/Proximity Caves | Identified Vortex Rail 17511 | -3/Proximity Caves | Lost 5 parts (1n3u1w) 17578 | -3/Proximity Caves | Entered a huge 0b10 base via the front door 17595 | -3/Proximity Caves | Spotted B-86 Titan 17643 | -3/Proximity Caves | Entered Research 17643 | -3/Research | Evolved 2 slots: Utility x1, Weapon x1 17644 | -3/Research | Identified exit to Testing 17645 | -3/Research | Identified exit to Research 17646 | -3/Research | Loaded intel: 96 trap records 17672 | -3/Research | Lost 7 parts (2p3n1u1w) 18143 | -3/Research | Found Fusion Bomb Launcher 18157 | -3/Research | Spotted B-86 Titan 18227 | -3/Research | Lost 16 parts (2p3n6u5w) 18262 | -3/Research | Core integrity fell below 50% 18324 | -3/Research | Cargo convoy interrupted 18347 | -3/Research | Entered Testing 18389 | -3/Testing | Scanned by Researcher 18450 | -3/Testing | Core integrity fell below 20% 18478 | -3/Testing | Destroyed by Y-72 Warden with Railgun Last Messages --------------- 18433_ C-55 Analyst is analyzing... 18437_ Held in stasis. 18437_ C-55 Analyst is analyzing... 18438_ Penetrated by Slug. 18438_ Slug penetrates Wall. 18441_ Held in stasis. 18441_ Slug penetrates Wall. 18445_ Held in stasis. 18445_ C-55 Analyst is analyzing... 18445_ Penetrated by Slug. 18449_ Held in stasis. 18454_ K-01 Serf destroyed. 18454_ K-01 Serf collects debris. 18455_ K-01 Serf destroyed. 18469_ Held in stasis. 18469_ C-55 Analyst is analyzing... 18472_ Held in stasis. 18472_ C-55 Analyst is analyzing... 18476_ Held in stasis. 18476_ C-55 Analyst is analyzing... Map ----- +----------------------------------------------------+ | #?????????????????????????????????????????????? | | ##?????????????????????????????????????????????? | | #??????????????????????????????????????????????? | | #??????????????????????????????????????????????? | | ###????????????????????????????????????????????? | | T#????????????????????????????????????????????? | | ""#????????????????????????????????????????????? | | ###????????????????????????????????????????????? | | #?????#####????????????????????????????????????? | | #?????# #????????????????????????????????????? | | #?????# #??????????=? ???????????????????????? | | #######* ####### ?? ???????????????????????? | | =%=% ?? ???????????????????????? | | * ! #????????? ???????????????????????? | | #????????? ???????????????????????? | | #????????? ???????????????????????? | | ###########+#######????? ???????????????????????? | | #????# #????# #??????????????????????? | | #????# #????#u#??????????????????????? | | #????# #????+ #??????????????????????? | | #????# #????# #??????????????????????? | | #????# """""""" #????# #??????????????????????? | | #????# " " #????# #??????????????????????? | | #####?# #????# #??????????????????????? | | #?# """ c g###### #??????????????????????? | | #?# ??" """"" c @#??????????????????????? | | """ #?#???" """"" ###### #??????????????????????? | | """ #???? #????# #??????????????????????? | | """ #??? #????# #??????????????????????? | | #??#############???? ??????????????????????? | | #??????????????????? ??????????????????????? | | #??????????????????? ??????????????????????? | | ####???????????????????? ??????????????????????? | | ???????????????????????# #?????????????????????? | | ???????????????????????#YYY#?????????????????????? | | ???????????????????????#####?????????????????????? | | ?????????????????????????????????????????????????? | | ?????????????????????????????????????????????????? | | ?????????????????????????????????????????????????? | | ?????????????????????????????????????????????????? | | ?????????????????????????????????????????????????? | | ?????????????????????????????????????????????????? | | ?????????????????????????????????????????????????? | | ?????????????????????????????????????????????????? | | ?????????????????????????????????????????????????? | | | | | | | | | | | +----------------------------------------------------+ Best States ------------- Heat Dissipation 68 Coolant Potential 80 Energy Generation 55 Energy Capacity 700 Matter Stores 300 Matter Capacity 300 Sight Range 16 Terrain Scan Range 14 Terrain Scan Density 210 ECM Strength 2 Jamming Range 14 Additional Mass Support 12 Armor Coverage 600 Resistance: TH 50 Resistance: EX 50 Core Shielding 30 Power Shielding 66 Utility Shielding 66 Point Defense Rating 80 Phase Shifting 20 Evasion (%) 75 Targeting Accuracy 5 Launcher Accuracy 40 Target Analysis 6 Core Analysis 6 Armor Integrity Analysis 30 Recoil Reduction 4 Particle Charging 25 Offensive Hacking 32 Defensive Hacking 11 Authchip Count 2 Item Schematics ----------------- Imp. Aluminum Leg | -9/Materials | Scanalyzed Datajack | -9/Materials | Scanalyzed Imp. Heat Sink | -8/Materials | Scanalyzed Nuclear Core | -8/Storage | Hacked Missile Launcher | -6/Factory | Scanalyzed Combat Drone Bay | -6/Data Miner | Free Lgt. Regenerative Plating | -6/Data Miner | Free Enh. Armored Leg | -6/Data Miner | Free Imp. Matter Compressor | -6/Data Miner | Free Enh. Coil Gun | -6/Data Miner | Free Adv. Medium Treads | -6/Data Miner | Free Adv. Cryofiber Web | -6/Data Miner | Free Railgun | -6/Data Miner | Free Antigrav Array | -6/Data Miner | Free Q-thruster | -6/Data Miner | Free Drone Bay | -4/Factory | Scanalyzed Adv. System Restoration Module | -3/Research | Scanalyzed Robot Schematics ------------------ S-27 Virus | -6/Data Miner | Free Y-54 Guardian | -6/Data Miner | Free G-50 Soldier | -6/Data Miner | Free Y-64 Sentinel | -6/Data Miner | Free B-60 Warrior | -6/Data Miner | Free Fabricated ------------ Nothing Alien Tech Used ----------------- None Achievements -------------- A Powerful Ally? Adventurer Charge!!! Dodgeball, But With Guns Leap Before You Look Reappropriation Tank Challenges ------------ None Game ------ Seed FireScatterActivator Manual? 0 Play Time 05:36:53 Cumulative 63.5 hours Start 2022.11.30 @ 12:14:54 End 2022.12.01 @ 23:13:09 Sessions 15 Manual Loads 0 Difficulty Rogue Special Mode None Game No. 49 Rogue 49 Adventurer 0 Explorer 0 Win Type - Total 0 Types 0/0/0/0/0/0/0/0/0 Lore% 41 Gallery% 42 Achievement% 33 Wizard Run 0 Options --------- ASCII 0 Keyboard 1 Movement Numpad Keybinds 0 Fullscreen 2 Font 18/SmallcapsGlow Map View 76x50 Tactical HUD 1 Map Filters NONE Filters NONE Steam 1 RUN: ba64e405-458d-4761-8e52-ceeb094f2e49